[Event "EICC 2021"]
[Site "Reykjavik"]
[Date "2021.09.04"]
[Round "10.40"]
[White "Kozak, Adam"]
[Black "Koellner, Ruben Gideon"]
[Result "1-0"]
[ECO "C54"]
[WhiteElo "2504"]
[BlackElo "2418"]
[Annotator "ChessBase"]
[PlyCount "79"]
[EventDate "2021.08.26"]
[EventType "swiss"]
[EventCountry "ISL"]
[Tiebreak "Cut1 Buchholz"]
[SourceTitle "playchess.com"]
[Source "ChessBase"]
[SourceQuality "1"]
[TimeControl "40/5400+30:1800+30"]

1. e4 {[%emt 0:07:00]} e5 {[%emt 0:00:20]} 2. Nf3 {[%emt 0:00:17]} Nc6 {
[%emt 0:00:02]} 3. Bc4 {[%emt 0:00:30]} Bc5 {[%emt 0:00:11]} 4. c3 {[%emt 0:04:
08]} Nf6 {[%emt 0:00:10]} 5. d4 {[%emt 0:03:56]} exd4 {[%emt 0:00:18]} 6. e5 {
[%emt 0:00:15]} d5 {[%emt 0:02:59]} 7. Bb5 {[%emt 0:00:50]} Ne4 {[%emt 0:00:24]
} 8. cxd4 {[%emt 0:00:08]} Bb6 {[%emt 0:00:34]} 9. Nc3 {[%emt 0:00:08]} O-O {
[%emt 0:00:48]} 10. Be3 {[%emt 0:00:37]} Bg4 {[%emt 0:03:37]} 11. h3 {[%emt 0:
05:08]} Bh5 {[%emt 0:01:47]} 12. Qa4 {[%emt 0:00:06]} Ne7 {[%emt 0:08:54]} 13.
Bd3 {[%emt 0:03:06]} Bg6 {[%emt 0:03:45]} 14. Qc2 {[%emt 0:05:20]} f5 {[%emt 0:
02:55]} 15. Ne2 {[%emt 0:07:18]} Bf7 {[%emt 0:03:23]} 16. b4 {[%emt 0:10:31]}
Ng6 {[%emt 0:04:07]} 17. g3 {[%emt 0:00:13]} Re8 {[%emt 0:01:09]} 18. h4 {
[%emt 0:07:09]} Qe7 {[%emt 0:00:26]} 19. Rb1 {[%emt 0:01:17]} a5 {[%emt 0:00:
51]} 20. b5 {[%emt 0:01:08]} Rac8 {[%emt 0:04:00]} 21. Ng5 {[%emt 0:09:39]} Ba7
{[%emt 0:06:52]} 22. O-O {[%emt 0:14:52]} c5 {[%emt 0:03:44]} 23. bxc6 {
[%emt 0:00:18]} bxc6 {[%emt 0:00:04]} 24. f4 {[%emt 0:09:16]} Nf8 {[%emt 0:01:
34]} 25. Rfc1 {[%emt 0:06:15]} Bh5 {[%emt 0:00:26]} 26. Ba6 {[%emt 0:01:10]}
Rc7 {[%emt 0:02:41]} 27. Kh2 {[%emt 0:02:13]} h6 {[%emt 0:01:08]} 28. Nxe4 {
[%emt 0:00:14]} fxe4 {[%emt 0:01:37]} 29. f5 {[%emt 0:00:15]} Qf7 {[%emt 0:03:
50]} 30. Rf1 {[%emt 0:01:04]} c5 {[%emt 0:03:49]} 31. e6 {[%emt 0:00:22]} Nxe6
{[%emt 0:01:14]} 32. fxe6 {[%emt 0:00:08]} Qxe6 {[%emt 0:00:03]} 33. Bb5 {
[%emt 0:00:51]} Rec8 {[%emt 0:01:09]} 34. Nf4 {[%emt 0:00:08]} Qf5 {[%emt 0:02:
14]} 35. Nxd5 {[%emt 0:00:40]} Qxd5 {[%emt 0:05:38]} 36. Bc4 {[%emt 0:00:06]}
cxd4 {[%emt 0:00:03]} 37. Bxd5+ {[%emt 0:00:07]} Kh8 {[%emt 0:00:03]} 38. Rf8+
{[%emt 0:00:31]} Rxf8 {[%emt 0:00:32]} 39. Qxc7 {[%emt 0:00:06]} dxe3 {[%emt 0:
00:22]} 40. Qxa7 {[%emt 0:00:08]} 1-0

[Event "EICC 2021"]
[Site "Reykjavik"]
[Date "2021.09.05"]
[Round "11.1"]
[White "Deac, Bogdan-Daniel"]
[Black "Demchenko, Anton"]
[Result "1/2-1/2"]
[ECO "D02"]
[WhiteElo "2639"]
[BlackElo "2597"]
[Annotator "RC"]
[PlyCount "56"]
[EventDate "2021.08.26"]
[EventType "swiss"]
[EventCountry "ISL"]
[Tiebreak "Cut1 Buchholz"]
[SourceTitle "playchess.com"]
[Source "ChessBase"]
[SourceQuality "1"]
[TimeControl "40/5400+30:1800+30"]

1. d4 {[%emt 0:00:02]} Nf6 {[%emt 0:00:08]} 2. Nf3 {[%emt 0:00:05]} g6 {
[%emt 0:00:06]} 3. Nbd2 {[%emt 0:01:12]} d5 {[%emt 0:00:23]} 4. Nb3 {[%emt 0:
00:38]} Bg7 {[%emt 0:01:34]} 5. Bf4 {[%emt 0:00:37]} Nbd7 {[%emt 0:19:29]} 6.
e3 {[%emt 0:01:58]} c5 {[%emt 0:01:21]} 7. dxc5 {[%emt 0:01:03]} Nxc5 {[%emt 0:
00:26]} 8. Nxc5 {[%emt 0:00:23]} Qa5+ {[%emt 0:00:04]} 9. c3 {[%emt 0:00:09]}
Qxc5 {[%emt 0:00:07]} 10. Qd4 {[%emt 0:00:08]} Qxd4 {[%emt 0:03:40]} 11. exd4 {
[%emt 0:03:40]} O-O {[%emt 0:05:14]} 12. a4 {[%emt 0:04:45]} a5 {[%emt 0:03:42]
} 13. Ne5 {[%emt 0:12:56]} Ne4 {[%emt 0:01:38]} 14. Be2 {[%emt 0:03:49]} g5 {
[%emt 0:02:34]} 15. Be3 {[%emt 0:04:02]} f6 {[%emt 0:00:09]} 16. Nd3 {[%emt 0:
01:22]} b6 {[%emt 0:00:07]} 17. O-O {[%emt 0:04:54]} Bd7 {[%emt 0:04:54]} 18.
Rfe1 {[%emt 0:00:39]} Rfc8 {[%emt 0:01:35]} 19. f3 {[%emt 0:01:49]} Nd6 {
[%emt 0:00:05]} 20. Nf2 {[%emt 0:00:04]} Rab8 {[%emt 0:03:16]} 21. Bc1 {
[%emt 0:03:56]} Kf7 {[%emt 0:01:31]} 22. f4 {[%emt 0:04:29]} h6 {[%emt 0:01:07]
} 23. Bh5+ {[%emt 0:01:15]} Kf8 {[%emt 0:00:10]} 24. Bf3 {[%emt 0:05:26]} e6 {
[%emt 0:02:21]} 25. fxg5 {[%emt 0:00:34]} hxg5 {[%emt 0:02:28]} 26. h4 {
[%emt 0:00:06]} gxh4 {[%emt 0:03:21]} 27. Bf4 {[%emt 0:00:11]} Nf7 {[%emt 0:00:
28]} 28. Bxb8 {[%emt 0:00:15]} Rxb8 {[%emt 0:00:36]} 1/2-1/2

[Event "EICC 2021"]
[Site "Reykjavik"]
[Date "2021.09.05"]
[Round "11.2"]
[White "Keymer, Vincent"]
[Black "Vocaturo, Daniele"]
[Result "1-0"]
[ECO "A13"]
[WhiteElo "2602"]
[BlackElo "2630"]
[Annotator "ChessBase"]
[PlyCount "79"]
[EventDate "2021.08.26"]
[EventType "swiss"]
[EventCountry "ISL"]
[Tiebreak "Cut1 Buchholz"]
[SourceTitle "playchess.com"]
[Source "ChessBase"]
[SourceQuality "1"]
[TimeControl "40/5400+30:1800+30"]

1. Nf3 {[%emt 0:00:03]} Nf6 {[%emt 0:00:25]} 2. c4 {[%emt 0:00:04]} e6 {
[%emt 0:00:38]} 3. b3 {[%emt 0:00:04]} d5 {[%emt 0:01:12]} 4. Bb2 {[%emt 0:00:
05]} Be7 {[%emt 0:00:51]} 5. e3 {[%emt 0:00:06]} O-O {[%emt 0:01:23]} 6. Nc3 {
[%emt 0:00:04]} c5 {[%emt 0:01:50]} 7. cxd5 {[%emt 0:00:04]} exd5 {[%emt 0:00:
17]} 8. d4 {[%emt 0:00:36]} Nc6 {[%emt 0:01:09]} 9. Be2 {[%emt 0:02:16]} Ne4 {
[%emt 0:01:32]} 10. dxc5 {[%emt 0:04:40]} Qa5 {[%emt 0:01:23]} 11. Rc1 {
[%emt 0:00:34]} Bf6 {[%emt 0:00:11]} 12. Nd4 {[%emt 0:01:10]} Nxc5 {[%emt 0:02:
07]} 13. Nxc6 {[%emt 0:03:20]} bxc6 {[%emt 0:00:07]} 14. O-O {[%emt 0:15:47]}
Ne4 {[%emt 0:05:53]} 15. Qc2 {[%emt 0:03:35]} Nxc3 {[%emt 0:01:01]} 16. Bxc3 {
[%emt 0:00:06]} Bxc3 {[%emt 0:00:07]} 17. Qxc3 {[%emt 0:00:03]} Qxa2 {[%emt 0:
00:13]} 18. Rc2 {[%emt 0:07:30]} Qa3 {[%emt 0:00:11]} 19. Ra1 {[%emt 0:00:40]}
Qe7 {[%emt 0:00:11]} 20. Qxc6 {[%emt 0:00:08]} Be6 {[%emt 0:04:11]} 21. Qc5 {
[%emt 0:14:02]} Qxc5 {[%emt 0:09:11]} 22. Rxc5 {[%emt 0:00:08]} Rfd8 {[%emt 0:
02:23]} 23. b4 {[%emt 0:07:23]} d4 {[%emt 0:05:12]} 24. exd4 {[%emt 0:00:18]}
Rxd4 {[%emt 0:00:12]} 25. b5 {[%emt 0:00:56]} Rd2 {[%emt 0:15:53]} 26. Bf3 {
[%emt 0:05:03]} Rad8 {[%emt 0:01:06]} 27. h3 {[%emt 0:07:13]} R2d7 {[%emt 0:01:
35]} 28. Rc3 {[%emt 0:04:43]} Bd5 {[%emt 0:11:12]} 29. Bg4 {[%emt 0:00:38]} Be6
{[%emt 0:01:58]} 30. Be2 {[%emt 0:00:59]} Rd2 {[%emt 0:02:26]} 31. Bf3 {
[%emt 0:01:40]} Rb2 {[%emt 0:06:29]} 32. Bc6 {[%emt 0:00:49]} g6 {[%emt 0:04:
56]} 33. Rxa7 {[%emt 0:02:38]} Rd1+ {[%emt 0:04:43]} 34. Kh2 {[%emt 0:00:13]}
Rxf2 {[%emt 0:02:04]} 35. b6 {[%emt 0:02:35]} Rb2 {[%emt 0:00:06]} 36. b7 {
[%emt 0:01:25]} Kg7 {[%emt 0:00:17]} 37. Rc5 {[%emt 0:05:09]} Rdb1 {[%emt 0:06:
10]} 38. Be4 {[%emt 0:00:27]} Rd1 {[%emt 0:03:48]} 39. Raa5 {[%emt 0:03:43]}
Bd7 {[%emt 0:02:37]} 40. Rab5 {[%emt 0:01:46]} 1-0

[Event "EICC 2021"]
[Site "Reykjavik"]
[Date "2021.09.05"]
[Round "11.9"]
[White "Romanov, Evgeny"]
[Black "Bluebaum, Matthias"]
[Result "0-1"]
[ECO "A01"]
[WhiteElo "2594"]
[BlackElo "2674"]
[Annotator "ChessBase"]
[PlyCount "118"]
[EventDate "2021.08.26"]
[EventType "swiss"]
[EventCountry "ISL"]
[Tiebreak "Cut1 Buchholz"]
[SourceTitle "playchess.com"]
[Source "ChessBase"]
[SourceQuality "1"]
[TimeControl "40/5400+30:1800+30"]

1. b3 {[%emt 0:00:17]} d5 {[%emt 0:02:13]} 2. Bb2 {[%emt 0:00:10]} Bf5 {
[%emt 0:00:45]} 3. d3 {[%emt 0:00:11]} Nf6 {[%emt 0:01:37]} 4. Nd2 {[%emt 0:00:
23]} c5 {[%emt 0:00:05]} 5. Ngf3 {[%emt 0:14:19]} Nc6 {[%emt 0:00:40]} 6. g3 {
[%emt 0:03:02]} Qc7 {[%emt 0:01:00]} 7. Bg2 {[%emt 0:03:38]} e5 {[%emt 0:00:38]
} 8. e4 {[%emt 0:01:49]} dxe4 {[%emt 0:03:01]} 9. dxe4 {[%emt 0:00:28]} Be6 {
[%emt 0:00:43]} 10. O-O {[%emt 0:06:14]} Rd8 {[%emt 0:05:35]} 11. Qc1 {[%emt 0:
00:24]} Be7 {[%emt 0:04:23]} 12. Ng5 {[%emt 0:01:50]} Bc8 {[%emt 0:05:45]} 13.
Nc4 {[%emt 0:01:32]} Nd4 {[%emt 0:15:18]} 14. Re1 {[%emt 0:05:13]} Bg4 {
[%emt 0:02:23]} 15. f3 {[%emt 0:02:36]} Bc8 {[%emt 0:08:00]} 16. f4 {[%emt 0:
02:23]} Nd7 {[%emt 0:01:15]} 17. Nf3 {[%emt 0:04:30]} exf4 {[%emt 0:08:23]} 18.
Nxd4 {[%emt 0:12:18]} cxd4 {[%emt 0:01:04]} 19. e5 {[%emt 0:00:05]} O-O {
[%emt 0:01:39]} 20. Qxf4 {[%emt 0:00:10]} Nc5 {[%emt 0:00:30]} 21. Nd6 {
[%emt 0:09:15]} Ne6 {[%emt 0:02:43]} 22. Qf2 {[%emt 0:02:23]} Bxd6 {[%emt 0:02:
27]} 23. exd6 {[%emt 0:00:03]} Qxd6 {[%emt 0:01:45]} 24. Rad1 {[%emt 0:00:09]}
b6 {[%emt 0:02:52]} 25. Bxd4 {[%emt 0:12:01]} Nxd4 {[%emt 0:00:46]} 26. c3 {
[%emt 0:00:01]} Ne2+ {[%emt 0:01:19]} 27. Qxe2 {[%emt 0:00:15]} Qc5+ {[%emt 0:
00:03]} 28. Kh1 {[%emt 0:05:39]} Rxd1 {[%emt 0:00:12]} 29. Rxd1 {[%emt 0:00:53]
} Qxc3 {[%emt 0:00:12]} 30. Qe7 {[%emt 0:00:36]} a5 {[%emt 0:02:36]} 31. h4 {
[%emt 0:04:00]} h6 {[%emt 0:12:41]} 32. Kh2 {[%emt 0:04:40]} Qc2 {[%emt 0:00:
13]} 33. Rd8 {[%emt 0:02:25]} Rxd8 {[%emt 0:00:08]} 34. Qxd8+ {[%emt 0:00:04]}
Kh7 {[%emt 0:00:02]} 35. Qxb6 {[%emt 0:02:29]} Qxa2 {[%emt 0:01:36]} 36. Qc6 {
[%emt 0:01:24]} Be6 {[%emt 0:01:27]} 37. Qe4+ {[%emt 0:00:15]} g6 {[%emt 0:00:
04]} 38. b4 {[%emt 0:00:22]} axb4 {[%emt 0:00:37]} 39. h5 {[%emt 0:00:45]} Qc4
{[%emt 0:00:40]} 40. hxg6+ {[%emt 0:00:24]} fxg6 {[%emt 0:00:05]} 41. Qb7+ {
[%emt 0:04:46]} Bf7 {[%emt 0:00:24]} 42. Qe7 {[%emt 0:00:11]} b3 {[%emt 0:01:
26]} 43. Qf6 {[%emt 0:02:08]} Qe6 {[%emt 0:00:06]} 44. Qd4 {[%emt 0:00:17]} Qe7
{[%emt 0:02:22]} 45. Be4 {[%emt 0:04:24]} Qf8 {[%emt 0:01:59]} 46. Kg2 {
[%emt 0:00:53]} Qg7 {[%emt 0:00:54]} 47. Qb6 {[%emt 0:00:19]} Qe5 {[%emt 0:01:
56]} 48. Kf3 {[%emt 0:01:07]} Kg7 {[%emt 0:00:24]} 49. Qb7 {[%emt 0:01:02]} h5
{[%emt 0:01:07]} 50. Kf2 {[%emt 0:00:30]} Qf6+ {[%emt 0:00:29]} 51. Kg2 {
[%emt 0:00:43]} Kh6 {[%emt 0:01:03]} 52. Qb4 {[%emt 0:00:33]} Be6 {[%emt 0:00:
55]} 53. Qd2+ {[%emt 0:00:50]} Kg7 {[%emt 0:00:20]} 54. Qb4 {[%emt 0:00:12]} b2
{[%emt 0:02:33]} 55. Qb7+ {[%emt 0:01:44]} Bf7 {[%emt 0:00:03]} 56. Qb4 {
[%emt 0:04:17]} Qe5 {[%emt 0:00:23]} 57. Qb7 {[%emt 0:00:32]} Kh6 {[%emt 0:00:
56]} 58. Kf2 {[%emt 0:01:46]} Bd5 {[%emt 0:02:05]} 59. Bxd5 {[%emt 0:01:27]}
Qf5+ {[%emt 0:00:04]} 0-1

[Event "EICC 2021"]
[Site "Reykjavik"]
[Date "2021.09.05"]
[Round "11.10"]
[White "Nisipeanu, Liviu-Dieter"]
[Black "Bjerre, Jonas Buhl"]
[Result "1/2-1/2"]
[ECO "E24"]
[WhiteElo "2671"]
[BlackElo "2550"]
[Annotator "ChessBase"]
[PlyCount "119"]
[EventDate "2021.08.26"]
[EventType "swiss"]
[EventCountry "ISL"]
[Tiebreak "Cut1 Buchholz"]
[SourceTitle "playchess.com"]
[Source "ChessBase"]
[SourceQuality "1"]
[TimeControl "40/5400+30:1800+30"]

1. d4 {[%emt 0:00:06]} Nf6 {[%emt 0:00:14]} 2. c4 {[%emt 0:00:11]} e6 {[%emt 0:
00:08]} 3. Nc3 {[%emt 0:00:05]} Bb4 {[%emt 0:00:07]} 4. f3 {[%emt 0:00:26]} c5
{[%emt 0:01:47]} 5. a3 {[%emt 0:00:06]} Bxc3+ {[%emt 0:02:11]} 6. bxc3 {
[%emt 0:00:06]} Nc6 {[%emt 0:01:52]} 7. e4 {[%emt 0:00:07]} d6 {[%emt 0:02:34]}
8. Be3 {[%emt 0:00:08]} Qa5 {[%emt 0:03:02]} 9. Kf2 {[%emt 0:00:07]} Qxc3 {
[%emt 0:07:49]} 10. Ne2 {[%emt 0:01:45]} Qa5 {[%emt 0:04:12]} 11. dxc5 {
[%emt 0:01:12]} dxc5 {[%emt 0:02:50]} 12. Qd6 {[%emt 0:00:05]} Qd8 {[%emt 0:06:
41]} 13. Bxc5 {[%emt 0:09:55]} b6 {[%emt 0:15:30]} 14. Nc3 {[%emt 0:27:54]}
bxc5 {[%emt 0:07:07]} 15. Qxc6+ {[%emt 0:00:07]} Bd7 {[%emt 0:05:22]} 16. Qxc5
{[%emt 0:00:27]} Ng4+ 17. fxg4 {[%emt 0:12:28]} Qf6+ {[%emt 0:02:33]} 18. Ke3 {
[%emt 0:00:04]} Qxc3+ {[%emt 0:01:10]} 19. Bd3 {[%emt 0:00:05]} Rc8 {[%emt 0:
10:44]} 20. Qd4 {[%emt 0:06:31]} Qxd4+ {[%emt 0:00:44]} 21. Kxd4 {[%emt 0:00:
05]} Ke7 {[%emt 0:01:26]} 22. Rab1 {[%emt 0:02:28]} Rc7 {[%emt 0:01:56]} 23.
Rhc1 {[%emt 0:02:50]} Rd8 {[%emt 0:01:56]} 24. g5 {[%emt 0:00:56]} f6 {[%emt 0:
05:09]} 25. gxf6+ {[%emt 0:04:28]} gxf6 {[%emt 0:00:13]} 26. Ke3 {[%emt 0:01:
42]} Kd6 {[%emt 0:01:29]} 27. Rf1 {[%emt 0:03:12]} Ke5 {[%emt 0:02:00]} 28. Rf4
{[%emt 0:00:34]} Ba4 {[%emt 0:02:39]} 29. Rh4 {[%emt 0:00:48]} Rcd7 {[%emt 0:
00:44]} 30. Be2 {[%emt 0:08:05]} f5 {[%emt 0:01:14]} 31. exf5 {[%emt 0:01:01]}
exf5 {[%emt 0:00:03]} 32. g3 {[%emt 0:01:01]} Re7 {[%emt 0:02:43]} 33. Rb2 {
[%emt 0:02:03]} Bd1 {[%emt 0:03:18]} 34. Rh6 {[%emt 0:03:17]} f4+ {[%emt 0:01:
10]} 35. gxf4+ {[%emt 0:02:53]} Kf5+ {[%emt 0:00:05]} 36. Kf2 {[%emt 0:00:04]}
Kxf4 {[%emt 0:01:14]} 37. Rh4+ {[%emt 0:04:01]} Kg5 {[%emt 0:00:17]} 38. Rb5+ {
[%emt 0:01:22]} Kg6 {[%emt 0:00:14]} 39. Rg4+ {[%emt 0:00:16]} Kf6 {[%emt 0:00:
49]} 40. Rf4+ {[%emt 0:00:09]} Kg6 {[%emt 0:00:23]} 41. Rb2 {[%emt 0:08:21]}
Kg5 {[%emt 0:04:18]} 42. Rf3 {[%emt 0:00:23]} Rxe2+ {[%emt 0:07:35]} 43. Rxe2 {
[%emt 0:00:05]} Bxe2 {[%emt 0:00:04]} 44. Kxe2 {[%emt 0:00:15]} Rd4 {[%emt 0:
01:47]} 45. Rc3 {[%emt 0:01:15]} Rh4 {[%emt 0:02:55]} 46. h3 {[%emt 0:14:36]}
Kf6 {[%emt 0:00:36]} 47. c5 {[%emt 0:02:35]} Ke7 {[%emt 0:00:53]} 48. Rd3 {
[%emt 0:00:17]} Rc4 {[%emt 0:03:26]} 49. Rd5 {[%emt 0:00:05]} Rc3 {[%emt 0:02:
21]} 50. Rh5 {[%emt 0:00:10]} Kd7 {[%emt 0:02:54]} 51. Rxh7+ {[%emt 0:02:17]}
Kc6 {[%emt 0:00:08]} 52. h4 {[%emt 0:00:15]} Rxa3 {[%emt 0:00:49]} 53. h5 {
[%emt 0:00:06]} Kxc5 {[%emt 0:01:04]} 54. h6 {[%emt 0:04:02]} Rh3 {[%emt 0:00:
16]} 55. Rh8 {[%emt 0:00:04]} Kb4 {[%emt 0:02:06]} 56. Kf2 {[%emt 0:01:51]} a5
{[%emt 0:01:15]} 57. Kg2 {[%emt 0:00:07]} Rh5 {[%emt 0:00:07]} 58. Kg3 {
[%emt 0:00:14]} a4 {[%emt 0:00:17]} 59. Kg4 {[%emt 0:00:10]} Rh1 {[%emt 0:00:
30]} 60. Rb8+ {[%emt 0:00:18]} 1/2-1/2

[Event "EICC 2021"]
[Site "Reykjavik"]
[Date "2021.09.05"]
[Round "11.11"]
[White "Lupulescu, Constantin"]
[Black "Ivic, Velimir"]
[Result "1/2-1/2"]
[ECO "D85"]
[WhiteElo "2659"]
[BlackElo "2571"]
[Annotator "ChessBase"]
[PlyCount "158"]
[EventDate "2021.08.26"]
[EventType "swiss"]
[EventCountry "ISL"]
[Tiebreak "Cut1 Buchholz"]
[SourceTitle "playchess.com"]
[Source "ChessBase"]
[SourceQuality "1"]
[TimeControl "40/5400+30:1800+30"]

1. d4 {[%emt 0:00:04]} Nf6 {[%emt 0:00:06]} 2. c4 {[%emt 0:00:03]} g6 {[%emt 0:
00:05]} 3. Nc3 {[%emt 0:00:04]} d5 {[%emt 0:00:05]} 4. cxd5 {[%emt 0:00:04]}
Nxd5 {[%emt 0:00:04]} 5. e4 {[%emt 0:00:03]} Nxc3 {[%emt 0:00:06]} 6. bxc3 {
[%emt 0:00:03]} Bg7 {[%emt 0:00:08]} 7. Bb5+ {[%emt 0:00:04]} c6 {[%emt 0:00:
44]} 8. Ba4 {[%emt 0:00:15]} O-O {[%emt 0:00:10]} 9. Ne2 {[%emt 0:00:12]} b5 {
[%emt 0:02:15]} 10. Bb3 {[%emt 0:00:43]} a5 {[%emt 0:02:03]} 11. O-O {[%emt 0:
00:42]} Nd7 {[%emt 0:03:11]} 12. a3 {[%emt 0:13:10]} e5 {[%emt 0:06:23]} 13.
Be3 {[%emt 0:01:14]} Qe7 {[%emt 0:05:11]} 14. f3 {[%emt 0:03:39]} Ba6 {[%emt 0:
02:06]} 15. Re1 {[%emt 0:11:06]} c5 {[%emt 0:20:22]} 16. Bd5 {[%emt 0:06:05]}
Rad8 {[%emt 0:01:33]} 17. Qd2 {[%emt 0:07:26]} exd4 {[%emt 0:19:28]} 18. cxd4 {
[%emt 0:00:32]} Nb6 {[%emt 0:00:30]} 19. Bg5 {[%emt 0:04:41]} Qd6 {[%emt 0:19:
11]} 20. Bxd8 {[%emt 0:05:20]} Rxd8 {[%emt 0:00:08]} 21. Qxa5 {[%emt 0:03:03]}
Nxd5 {[%emt 0:02:39]} 22. exd5 {[%emt 0:00:40]} cxd4 {[%emt 0:03:02]} 23. Rad1
{[%emt 0:03:29]} Ra8 {[%emt 0:06:01]} 24. Nxd4 {[%emt 0:03:55]} Be5 {[%emt 0:
00:44]} 25. Rxe5 {[%emt 0:04:12]} Qxe5 {[%emt 0:00:17]} 26. Nc6 {[%emt 0:00:12]
} Qe3+ {[%emt 0:00:28]} 27. Kh1 {[%emt 0:00:06]} Bb7 {[%emt 0:03:39]} 28. Qxb5
{[%emt 0:02:48]} Re8 {[%emt 0:01:56]} 29. h3 {[%emt 0:08:49]} Bc8 {[%emt 0:00:
11]} 30. Qd3 {[%emt 0:00:48]} Qf2 {[%emt 0:00:37]} 31. Qf1 {[%emt 0:06:47]} Qc5
{[%emt 0:01:03]} 32. Re1 {[%emt 0:01:38]} Bd7 {[%emt 0:00:46]} 33. Rxe8+ {
[%emt 0:01:02]} Bxe8 {[%emt 0:00:01]} 34. a4 {[%emt 0:00:54]} Kf8 {[%emt 0:00:
28]} 35. Qa1 {[%emt 0:02:36]} Bxc6 {[%emt 0:00:40]} 36. dxc6 {[%emt 0:00:10]}
Qxc6 {[%emt 0:00:04]} 37. a5 {[%emt 0:00:10]} Qa6 {[%emt 0:00:02]} 38. Qh8+ {
[%emt 0:01:39]} Ke7 {[%emt 0:00:03]} 39. Qe5+ {[%emt 0:00:04]} Kd7 {[%emt 0:00:
07]} 40. Qd5+ {[%emt 0:01:56]} Ke7 {[%emt 0:02:32]} 41. Qc5+ {[%emt 0:33:11]}
Kd7 {[%emt 0:30:29]} 42. Kh2 {[%emt 0:00:48]} Qf6 {[%emt 0:00:45]} 43. Qb5+ {
[%emt 0:00:00]} Kc7 {[%emt 0:00:00]} 44. Qc4+ {[%emt 0:00:00]} Kb7 {[%emt 0:00:
00]} 45. f4 {[%emt 0:00:00]} Qd6 {[%emt 0:00:00]} 46. Qxf7+ {[%emt 0:00:00]}
Ka6 {[%emt 0:00:00]} 47. Qc4+ {[%emt 0:00:00]} Kxa5 {[%emt 0:00:00]} 48. Qc3+ {
[%emt 0:00:00]} Kb6 {[%emt 0:00:00]} 49. Qe5 {[%emt 0:00:00]} Qd2 {[%emt 0:00:
00]} 50. Kg3 {[%emt 0:00:39]} Kc6 {[%emt 0:00:00]} 51. Kf3 {[%emt 0:02:50]} Kd7
{[%emt 0:00:00]} 52. h4 {[%emt 0:01:46]} Qd3+ {[%emt 0:00:00]} 53. Kg4 {
[%emt 0:00:55]} Qd1+ {[%emt 0:00:00]} 54. Kg3 {[%emt 0:00:24]} Qd3+ {[%emt 0:
00:00]} 55. Kg4 {[%emt 0:00:10]} Qd1+ {[%emt 0:00:00]} 56. Kg3 {[%emt 0:00:05]}
Qd3+ {[%emt 0:00:00]} 57. Kh2 {[%emt 0:00:03]} h5 {[%emt 0:00:00]} 58. Kg1 {
[%emt 0:04:14]} Qd1+ {[%emt 0:00:00]} 59. Kf2 {[%emt 0:00:08]} Qd2+ {[%emt 0:
00:00]} 60. Kf3 {[%emt 0:00:11]} Qd3+ {[%emt 0:00:00]} 61. Qe3 {[%emt 0:00:15]}
Qf5 {[%emt 0:00:57]} 62. Qd4+ {[%emt 0:02:06]} Ke6 {[%emt 0:00:54]} 63. Qe4+ {
[%emt 0:00:11]} Kf6 {[%emt 0:00:04]} 64. Qc6+ {[%emt 0:00:21]} Kg7 {[%emt 0:00:
52]} 65. Ke3 {[%emt 0:00:23]} Qg4 {[%emt 0:00:55]} 66. Qc7+ {[%emt 0:00:42]}
Kh6 {[%emt 0:01:17]} 67. Qe5 {[%emt 0:00:37]} Qg3+ {[%emt 0:00:48]} 68. Kd4 {
[%emt 0:00:05]} Qf2+ {[%emt 0:00:28]} 69. Kc3 {[%emt 0:00:34]} Kh7 {[%emt 0:01:
34]} 70. Qe7+ {[%emt 0:00:32]} Kg8 {[%emt 0:01:12]} 71. Qe4 {[%emt 0:01:05]}
Kh7 {[%emt 0:00:46]} 72. Qe7+ {[%emt 0:00:47]} Kg8 {[%emt 0:00:09]} 73. Qg5 {
[%emt 0:00:05]} Kf7 {[%emt 0:02:41]} 74. f5 {[%emt 0:01:43]} Qxf5 {[%emt 0:01:
47]} 75. Qxf5+ {[%emt 0:00:03]} gxf5 {[%emt 0:00:03]} 76. Kd4 {[%emt 0:01:05]}
Ke6 {[%emt 0:00:16]} 77. Ke3 {[%emt 0:00:22]} Ke5 {[%emt 0:00:04]} 78. g3 {
[%emt 0:00:06]} Ke6 {[%emt 0:00:03]} 79. Kf3 {[%emt 0:00:39]} Ke5 {[%emt 0:00:
05]} 1/2-1/2

[Event "EICC 2021"]
[Site "Reykjavik"]
[Date "2021.09.05"]
[Round "11.13"]
[White "Thybo, Jesper Sondergaard"]
[Black "Martirosyan, Haik M."]
[Result "1/2-1/2"]
[ECO "E15"]
[WhiteElo "2587"]
[BlackElo "2632"]
[Annotator "ChessBase"]
[PlyCount "90"]
[EventDate "2021.08.26"]
[EventType "swiss"]
[EventCountry "ISL"]
[Tiebreak "Cut1 Buchholz"]
[SourceTitle "playchess.com"]
[Source "ChessBase"]
[SourceQuality "1"]
[TimeControl "40/5400+30:1800+30"]

1. d4 {[%emt 0:00:04]} Nf6 {[%emt 0:00:11]} 2. c4 {[%emt 0:00:12]} e6 {[%emt 0:
00:06]} 3. Nf3 {[%emt 0:00:08]} b6 {[%emt 0:00:18]} 4. g3 {[%emt 0:00:16]} Ba6
{[%emt 0:00:08]} 5. Qc2 {[%emt 0:00:21]} c5 {[%emt 0:00:32]} 6. d5 {[%emt 0:00:
28]} exd5 {[%emt 0:00:27]} 7. cxd5 {[%emt 0:00:10]} Bb7 {[%emt 0:00:30]} 8. Bg2
{[%emt 0:00:20]} Nxd5 {[%emt 0:00:42]} 9. O-O {[%emt 0:00:23]} Be7 {[%emt 0:00:
40]} 10. Rd1 {[%emt 0:00:40]} Nc6 {[%emt 0:00:31]} 11. Qa4 {[%emt 0:01:03]} Nf6
{[%emt 0:01:52]} 12. Nh4 {[%emt 0:01:31]} g6 {[%emt 0:00:58]} 13. Bh6 {[%emt 0:
03:34]} Bf8 {[%emt 0:00:31]} 14. Bg5 {[%emt 0:01:05]} Be7 {[%emt 0:01:10]} 15.
Bh6 {[%emt 0:01:24]} Bf8 {[%emt 0:00:09]} 16. Bg5 {[%emt 0:00:13]} Be7 {
[%emt 0:07:06]} 17. Nc3 {[%emt 0:01:11]} O-O {[%emt 0:00:53]} 18. Rd2 {[%emt 0:
00:39]} a6 {[%emt 0:10:15]} 19. Nf3 {[%emt 0:16:48]} b5 {[%emt 0:17:46]} 20.
Qf4 {[%emt 0:12:21]} Na5 {[%emt 0:16:53]} 21. Rad1 {[%emt 0:10:30]} Bc6 {
[%emt 0:04:52]} 22. Ne5 {[%emt 0:07:00]} Bxg2 {[%emt 0:01:05]} 23. Bxf6 {
[%emt 0:03:59]} Bxf6 {[%emt 0:00:34]} 24. Rxd7 {[%emt 0:05:38]} Bxe5 {[%emt 0:
05:50]} 25. Qxe5 {[%emt 0:00:11]} Nc4 {[%emt 0:08:14]} 26. Rxd8 {[%emt 0:05:10]
} Nxe5 {[%emt 0:00:03]} 27. Rxf8+ {[%emt 0:00:09]} Kxf8 {[%emt 0:00:04]} 28.
Kxg2 {[%emt 0:00:05]} Rc8 {[%emt 0:06:30]} 29. Rd5 {[%emt 0:00:50]} Nc4 {
[%emt 0:00:28]} 30. b3 {[%emt 0:09:02]} Na3 {[%emt 0:03:03]} 31. Rd6 {[%emt 0:
02:28]} a5 {[%emt 0:03:20]} 32. Ra6 {[%emt 0:04:34]} c4 {[%emt 0:03:05]} 33.
bxc4 {[%emt 0:03:19]} Rxc4 {[%emt 0:01:52]} 34. Nd5 {[%emt 0:00:32]} a4 {
[%emt 0:00:15]} 35. Nf6 {[%emt 0:00:52]} Rc2 {[%emt 0:02:40]} 36. e4 {[%emt 0:
03:52]} Nc4 {[%emt 0:02:02]} 37. a3 {[%emt 0:01:12]} h5 {[%emt 0:01:15]} 38.
Ra7 {[%emt 0:00:40]} Ne3+ {[%emt 0:01:32]} 39. Kf3 {[%emt 0:01:13]} Ng4 {
[%emt 0:01:06]} 40. Nxg4 {[%emt 0:03:00]} hxg4+ {[%emt 0:00:02]} 41. Kxg4 {
[%emt 0:30:53]} Rxf2 {[%emt 0:30:12]} 42. h4 {[%emt 0:01:04]} Re2 {[%emt 0:00:
00]} 43. Kf4 {[%emt 0:00:00]} Rf2+ {[%emt 0:00:00]} 44. Kg4 {[%emt 0:00:00]}
Re2 {[%emt 0:00:00]} 45. Kf4 {[%emt 0:00:00]} Rf2+ {[%emt 0:00:00]} 1/2-1/2